[Event "Reykjavik Open 2024"]
[Site "Reykjavik"]
[Date "2024.03.15"]
[Round "1.7"]
[White "Pultinevicius, Paulius"]
[Black "Strathmann, Sacha"]
[Result "1-0"]
[ECO "D00"]
[WhiteElo "2575"]
[BlackElo "2129"]
[Annotator "TA"]
[PlyCount "71"]
[EventDate "2024.03.12"]
[EventCountry "ISL"]
[SourceTitle "playchess.com"]
[Source "ChessBase"]
[SourceQuality "1"]
[TimeControl "40/5400+30:1800+30"]

{[%evp 9,71,-1,0,1,0,0,51,10,18,0,0,0,13,-9,0,0,0,0,14,19,39,29,53,48,86,92,101,75,120,101,114,109,127,59,158,151,203,195,267,248,480,193,258,263,243,263,255,249,264,265,262,243,765,766,759,722,756,756,760,744,762,737,760,760]} 1. d4 {[%emt 0:00:03]} Nf6 {[%emt 0:00:18]} 2. Bg5 {[%emt 0:00:05]} c6 {[%emt 0:01:21]} 3. Bxf6 {[%emt 0:02:17]} exf6 {[%emt 0:00:13]} 4. e3 {[%emt 0:02:47]} d5 {[%emt 0:00:11]} 5. Nf3 {[%emt 0:05:01]} Nd7 {[%emt 0:08:14]} 6. c4 {[%emt 0:00:23]} Bb4+ {[%emt 0:01:01]} 7. Nfd2 {[%emt 0:00:48]} O-O {[%emt 0:03:29]} (7... dxc4 $11 8. Bxc4 O-O) 8. a3 {[%emt 0:00:03] Weiß steht etwas besser.} Bd6 {[%emt 0:00:50]} 9. Nc3 {[%emt 0:00:23]} dxc4 $1 {[%emt 0:01:28]} 10. Nxc4 {[%emt 0:00:05] Hervorragende Reitkunst.} Bc7 {[%emt 0:00:18]} 11. Bd3 {[%emt 0:00:08]} Nb6 {[%emt 0:02:25]} 12. O-O {[%emt 0:00:07]} Nxc4 {[%emt 0:08:25]} 13. Bxc4 {[%emt 0:00:05]} f5 {[%emt 0:00:16]} 14. g3 {[%emt 0:01:27]} b5 {[%emt 0:07:37]} 15. Be2 {[%emt 0:00:26]} a5 {[%emt 0:00:14]} 16. Rc1 {[%emt 0:00:25]} Be6 {[%emt 0:07:19] [#]} 17. Bf3 $1 {[%emt 0:00:10]} (17. d5 cxd5 18. Nxb5 (18. Bxb5 Be5 $11) 18... Be5 $14) 17... Ra6 {[%emt 0:00:36]} 18. Qc2 {[%emt 0:00:28]} (18. d5 cxd5 19. Nxb5 Be5) 18... Bc4 {[%emt 0:04:41]} 19. Be2 {[%emt 0:00:24]} Bxe2 {[%emt 0:00:38]} 20. Qxe2 {[%emt 0:00:35]} (20. Nxe2 g6 $14) 20... Qd7 {[%emt 0:01:23] [#]} 21. Rfd1 {[%emt 0:00:13]} ({Günstiger ist} 21. d5 $1 $16) 21... Bd6 {[%emt 0:02:54]} (21... Rb6 $1 $14) 22. d5 $16 {[%emt 0:00:23]} Rb8 {[%emt 0:00:28]} (22... Qb7 $16 {ist wohl besser.}) 23. a4 $18 {[%emt 0:00:41]} cxd5 {[%emt 0:05:57]} (23... h6 {ist eine bessere Verteidigung.} 24. Rc2 (24. dxc6 Rxc6 25. axb5 Rcc8 $18) 24... c5 25. Nxb5 g6) 24. Rxd5 {[%emt 0:00:11]} ({Jedoch nicht} 24. Nxb5 $6 Rc6 25. Rxc6 Qxc6 $16) 24... Rc6 $2 {[%emt 0:02:23]} (24... Qe6 25. axb5 (25. Rxb5 Rab6 $18) 25... Raa8) 25. Rxb5 {[%emt 0:00:14]} (25. Rcd1 $142) 25... Rbc8 {[%emt 0:04:16]} (25... Ra8 $142 26. Rd1 g6) 26. Rd1 {[%emt 0:00:20]} Qe6 {[%emt 0:03:28]} 27. Rxa5 {[%emt 0:00:06]} Bb4 {[%emt 0:01:07]} 28. Rad5 {[%emt 0:00:07]} g6 {[%emt 0:00:34]} 29. Nb5 {[%emt 0:01:13]} Rc2 {[%emt 0:00:55]} 30. Rd8+ {[%emt 0:00:14]} Kg7 $2 {[%emt 0:00:14] [#]} (30... Bf8 31. R8d2 Rxd2 32. Rxd2 (32. Qxd2 h5 $18) 32... Rc1+ 33. Rd1 Rc5) 31. Nd4 $1 {[%emt 0:00:12][%csl LRc2,LRe6] Weiß steht klar auf Gewinn.} Qe4 {[%emt 0:11:27]} 32. Nxc2 {[%emt 0:00:08]} Rxc2 {[%emt 0:00:05]} 33. Qd3 {[%emt 0:00:03]} Qxd3 {[%emt 0:00:13]} 34. R1xd3 {[%emt 0:00:04]} Kf6 {[%emt 0:03:02]} 35. R8d5 {[%emt 0:00:10]} Rc1+ {[%emt 0:04:03]} 36. Rd1 {[%emt 0:00:09] Gewichteter Fehlerwert: Weiß=0.25 (präzise) /Schwarz=0.33.  Fehler:       	Weiß=2     	Schwarz=7     Ungenau:       	Weiß=1     	Schwarz=2     OK:         	Weiß=7     	Schwarz=6     Bester:       	Weiß=2     	---        Stark:        	Weiß=1     	Schwarz=1} 1-0

[Event "Reykjavik Open 2024"]
[Site "Reykjavik"]
[Date "2024.03.15"]
[Round "1.8"]
[White "Stanford, Sheila Barth"]
[Black "Sanal, Vahap"]
[Result "0-1"]
[ECO "B43"]
[WhiteElo "2123"]
[BlackElo "2558"]
[Annotator "TA"]
[PlyCount "80"]
[EventDate "2024.03.12"]
[EventCountry "ISL"]
[SourceTitle "playchess.com"]
[Source "ChessBase"]
[SourceQuality "1"]
[TimeControl "40/5400+30:1800+30"]

{[%evp 14,80,14,0,0,-23,16,15,37,-9,15,11,37,29,27,5,24,-14,-14,-25,-13,0,0,0,-7,0,-14,-57,-42,-39,-48,-62,-50,-45,-44,-45,-32,-34,-24,-31,-30,-30,-18,-27,-35,-36,-37,-46,-45,-51,-61,-101,-95,-104,-104,-108,-99,-553,-542,-679,-683,-691,-625,-665,-661,-755,-716,-690,-693]} 1. e4 {[%emt 0:00:06]} c5 {[%emt 0:00:09]} 2. Nc3 {[%emt 0:00:14]} a6 {[%emt 0:00:58]} 3. Nf3 {[%emt 0:01:17]} e6 {[%emt 0:00:11]} 4. d4 {[%emt 0:00:29]} cxd4 {[%emt 0:00:10]} 5. Nxd4 {[%emt 0:00:03]} Qc7 {[%emt 0:00:18]} 6. Bd3 {[%emt 0:00:53]} Nf6 {[%emt 0:00:12]} 7. Qe2 {[%emt 0:01:29]} d6 {[%emt 0:00:10]} 8. Be3 {[%emt 0:04:33]} b5 {[%emt 0:00:32][%cal Bb7b5,Bb5b4][%mdl 32]} 9. O-O-O {[%emt 0:03:21]} Be7 {[%emt 0:05:10]} 10. g4 {[%emt 0:02:00][%cal Bg2g4,Bg4g5][%mdl 32]} b4 {[%emt 0:02:07] The position is equal.} 11. Nb1 {[%emt 0:01:52]} (11. Na4 $14 {should be considered.}) 11... Bb7 {[%emt 0:00:52]} 12. Nd2 {[%emt 0:09:06]} Nc6 {[%emt 0:02:21]} 13. g5 {[%emt 0:21:37]} Nd7 {[%emt 0:00:19]} 14. f4 {[%emt 0:00:58]} Nc5 {[%emt 0:03:55]} 15. Rhg1 {[%emt 0:05:35]} Nxd3+ {[%emt 0:09:59]} 16. Qxd3 {[%emt 0:00:06]} Rc8 {[%emt 0:08:19]} 17. Kb1 {[%emt 0:01:41]} Nxd4 {[%emt 0:04:31]} 18. Bxd4 {[%emt 0:00:13]} e5 {[%emt 0:00:18]} 19. Be3 {[%emt 0:01:19]} O-O {[%emt 0:01:06]} 20. Rc1 {[%emt 0:05:30] [#]} d5 $1 {[%emt 0:03:48]} 21. fxe5 {[%emt 0:17:07]} Qxe5 {[%emt 0:03:36][%cal Rd5e4]} 22. Bd4 {[%emt 0:04:45]} dxe4 {[%emt 0:01:51]} (22... Qxh2 $2 {perishes.} 23. Rh1 Qd6 (23... dxe4 $2 24. Nxe4 Bd6 25. Nf6+ gxf6 26. Rxh2 $18) 24. Rxh7 (24. exd5 $2 Qg6 $19) 24... Kxh7 25. Qh3+ Kg8 26. Rh1 $18) 23. Bxe5 {[%emt 0:00:21]} exd3 {[%emt 0:00:07]} 24. cxd3 {[%emt 0:00:08]} Rxc1+ {[%emt 0:06:11]} 25. Kxc1 {[%emt 0:00:07]} Rd8 {[%emt 0:00:12]} 26. Kc2 {[%emt 0:02:25]} Kf8 {[%emt 0:01:14]} 27. Nc4 {[%emt 0:01:07]} Bc8 {[%emt 0:00:56]} 28. Rg3 {[%emt 0:04:25]} Be6 {[%emt 0:02:08]} 29. h4 {[%emt 0:02:16]} f6 {[%emt 0:02:13]} 30. gxf6 {[%emt 0:00:46]} gxf6 {[%emt 0:00:08]} 31. Rf3 $1 {[%emt 0:00:13]} Kg7 {[%emt 0:00:30]} 32. Bg3 {[%emt 0:02:47]} Bg4 $1 {[%emt 0:02:31]} 33. Rf2 {[%emt 0:02:52] [#]} Bc5 $1 {[%emt 0:01:35] Dodges Ne3} 34. Rd2 {[%emt 0:00:01]} Bf5 {[%emt 0:00:28]} 35. Bf4 $2 {[%emt 0:00:05][%mdl 8192] [#] Now White is beyond hope.} (35. a4 $17 {is more resistant.}) 35... Rd4 $1 $19 {[%emt 0:00:28][%csl LRc4,LRf4] Black is clearly winning.} 36. Rg2+ {[%emt 0:02:30]} Kf7 {[%emt 0:00:09]} 37. Be3 {[%emt 0:00:08]} Rxc4+ {[%emt 0:00:50]} 38. Kb3 {[%emt 0:00:07]} Bxd3 {[%emt 0:00:08]} 39. Rd2 {[%emt 0:00:19]} Bxe3 {[%emt 0:00:12]} 40. Rxd3 {[%emt 0:00:04]} Re4 {[%emt 0:00:07] Weighted Error Value: White=0.35/Black=0.06 (flawless) .  Loses game:     	White=1     	---        Mistake:       	White=1     	---        Inaccurate:     	White=3     	Black=2      OK:         	White=8     	Black=11     Best:        	---       	Black=2      Strong:       	White=1     	Black=3} 0-1

[Event "Reykjavik Open 2024"]
[Site "Reykjavik"]
[Date "2024.03.15"]
[Round "1.9"]
[White "Li, Harry"]
[Black "Can, Emre"]
[Result "0-1"]
[ECO "B38"]
[WhiteElo "2107"]
[BlackElo "2551"]
[Annotator "TA"]
[PlyCount "102"]
[EventDate "2024.03.12"]
[EventCountry "ISL"]
[SourceTitle "playchess.com"]
[Source "ChessBase"]
[SourceQuality "1"]
[TimeControl "40/5400+30:1800+30"]

{[%evp 21,102,80,87,38,97,39,34,19,33,20,72,31,36,33,25,0,0,-28,-31,-32,-29,-30,-18,-21,-35,-33,-52,-43,-18,-45,-44,-45,-43,-67,-61,-61,-66,-71,-62,-121,-110,-163,-117,-103,-106,-166,-154,-315,-79,-171,-56,-261,-137,-114,-110,-192,-123,-212,-89,-111,-10,-454,-262,-547,-531,-935,-956,-876,-624,-616,-616,-593,-565,-1125,-1160,-29980,-29979,-29985,-29986,-29986,-29987,-29987,-29988]} 1. e4 {[%emt 0:00:05]} c5 {[%emt 0:01:39]} 2. Nf3 {[%emt 0:00:15]} Nc6 {[%emt 0:00:46]} 3. d4 {[%emt 0:00:21]} cxd4 {[%emt 0:00:08]} 4. Nxd4 {[%emt 0:00:02]} g6 {[%emt 0:01:23]} 5. c4 {[%emt 0:00:43]} Qb6 {[%emt 0:01:33]} 6. Nb3 {[%emt 0:08:40]} Bg7 {[%emt 0:00:55]} 7. Be2 {[%emt 0:01:03]} d6 {[%emt 0:04:23]} 8. O-O {[%emt 0:00:24]} a5 {[%emt 0:02:01]} 9. Be3 {[%emt 0:02:17]} Qd8 {[%emt 0:00:14]} 10. Nd4 {[%emt 0:01:47]} Nf6 {[%emt 0:03:55]} 11. Nc3 {[%emt 0:01:38]} O-O {[%emt 0:00:46]} 12. Re1 {[%emt 0:04:38]} (12. f4 $16) 12... Bd7 {[%emt 0:08:35]} (12... Nxd4 $14 13. Bxd4 h5) 13. h3 {[%emt 0:04:57]} (13. Ndb5 $16) 13... Nxd4 $14 {[%emt 0:05:34]} 14. Bxd4 {[%emt 0:00:13]} Bc6 {[%emt 0:00:26]} 15. Qd3 {[%emt 0:12:59]} a4 {[%emt 0:03:43]} (15... Re8 $11 {keeps the balance.}) 16. Bf1 {[%emt 0:02:06]} Nd7 {[%emt 0:02:20]} 17. Bxg7 {[%emt 0:00:32]} Kxg7 {[%emt 0:00:15]} 18. Nd5 {[%emt 0:00:30]} Nc5 {[%emt 0:00:49]} 19. Qd4+ {[%emt 0:05:21]} e5 {[%emt 0:03:25]} 20. Qe3 {[%emt 0:09:44]} Bxd5 {[%emt 0:01:30]} 21. cxd5 {[%emt 0:03:18]} Qb6 {[%emt 0:04:01]} 22. Re2 {[%emt 0:03:59]} Qb4 {[%emt 0:07:51]} 23. Qc3 {[%emt 0:07:26]} Qxc3 {[%emt 0:04:52]} 24. bxc3 {[%emt 0:00:03]} a3 {[%emt 0:03:02]} 25. Re3 {[%emt 0:05:50]} f5 {[%emt 0:00:34]} 26. exf5 {[%emt 0:02:17]} gxf5 {[%emt 0:01:07]} 27. f3 {[%emt 0:04:37]} Kf6 {[%emt 0:08:57]} 28. Rb1 {[%emt 0:00:37]} f4 {[%emt 0:00:29]} 29. Ree1 {[%emt 0:00:05]} Rg8 {[%emt 0:01:58]} 30. Kf2 {[%emt 0:01:07] [#]} (30. Rb5 $15) 30... e4 $1 $17 {[%emt 0:08:33][%mdl 512]} 31. fxe4 {[%emt 0:01:19]} (31. Rb4 $17) (31. Rb6 e3+) 31... Rg3 {[%emt 0:00:23]} ({Black should play} 31... Ke5 $19 32. Be2 Rac8 (32... Nxe4+ 33. Kg1 $11)) 32. e5+ $17 {[%emt 0:05:51]} dxe5 {[%emt 0:00:33]} 33. Rb6+ {[%emt 0:00:02]} (33. c4 $17 {was necessary.}) 33... Kf5 $19 {[%emt 0:00:13][%cal Oa8g8]} 34. Rh6 $2 {[%emt 0:00:33]} (34. Kg1 $17) 34... e4 $2 {[%emt 0:03:07]} (34... Rxc3 35. Rh5+ Kf6 36. Rexe5 $16) (34... Ne4+ $1 $19 {is more deadly.} 35. Kg1 Nf6 (35... Rxc3 36. Rh5+ Kg6 37. Rxe5 $16)) 35. Rxh7 {[%emt 0:01:21]} (35. Rd1 $17 {might work better.}) 35... Rag8 {[%emt 0:06:10]} (35... Rxc3 $19 {Strongly threatening ...Rc2+.} 36. d6 e3+ 37. Kg1 (37. Kf3 $2 Ne6 $19) 37... Rd8 38. Rf7+ Ke5) 36. Rd1 $2 {[%emt 0:04:40]} (36. d6 $15) 36... Rxc3 {[%emt 0:07:59]} (36... Nd3+ $19 37. Kg1 Ke5) 37. d6 {[%emt 0:01:01]} Rc2+ {[%emt 0:01:22]} 38. Kg1 {[%emt 0:01:47] [#]} e3 {[%emt 0:00:37]} (38... Rxa2 39. Rh5+ Kf6 (39... Rg5 $2 40. Rd5+ Ke6 41. Rdxg5 $18) 40. Rxc5 $18) (38... f3 $1 $19 39. d7 f2+ (39... Rxa2 $2 40. Rh5+ Kf6 41. Rxc5 $18) 40. Kh2 Rd8 (40... Rxa2 $2 41. Bc4 $18)) 39. Re7 {[%emt 0:00:48]} (39. d7 $17 {keeps fighting.} Rd8 (39... Rxa2 40. Rh5+ Kf6 41. Rxc5 $16) 40. Rf7+ Kg6 (40... Ke5 41. g3 $11) 41. Rxf4) 39... Rd8 {[%emt 0:01:20]} (39... Rxa2 40. Rd5+ Kf6 41. Rxc5 $14) (39... Rd2 $19 40. g4+ Kf6 (40... fxg3 41. Re1 $11) 41. Rxd2 exd2) 40. Bb5 $17 {[%emt 0:04:37] [#]} Kf6 {[%emt 0:02:06]} (40... Rxa2 $6 41. Rd5+ Kf6 42. Rxc5 $11) (40... Rd2 $1 $17 {[%cal Rd2d1]} 41. Rf1 R8xd6 (41... Rxa2 42. Rxe3 Rxd6 43. g4+ Kg6 44. Rxf4 $11) 42. Rxe3 Rxa2 43. g4+ Kg6 44. Rxf4 Rd1+ 45. Bf1 Raa1) 41. Rc7 $2 {[%emt 0:07:05][%mdl 8192]} (41. Rf1 $1 $11 {and White is okay.} Rf2 (41... Rxa2 42. Rxf4+ Kg5 43. Rf1 $11) 42. Rxf2 exf2+ 43. Kxf2) 41... b6 {[%emt 0:03:32]} (41... Rg8 $142 42. g4 f3 (42... fxg3 43. d7 $18)) 42. d7 $2 {[%emt 0:14:31]} (42. Rf1 Rxa2 (42... Rxd6 $2 43. Rxf4+ Ke5 44. Rf3 $19) (42... Ke5 $2 43. d7 $19) 43. Rxf4+ Ke5 44. Rf3) 42... Rxa2 $19 {[%emt 0:09:47]} 43. Rd6+ {[%emt 0:02:53]} Ke7 {[%emt 0:03:21]} 44. Rxb6 {[%emt 0:00:05]} e2 {[%emt 0:05:09]} ({Weaker is} 44... Nxd7 45. Ra6 $17) 45. Kf2 {[%emt 0:03:20]} Ne4+ {[%emt 0:00:06]} ({And not} 45... Nxd7 46. Ra6 $11) 46. Ke1 {[%emt 0:00:05][%cal Ob5c4]} Ng3 {[%emt 0:00:38]} 47. Rc1 {[%emt 0:02:25] Repels Ra1} Rb2 {[%emt 0:00:15] And now ...a2 would win.} 48. Rb7 {[%emt 0:01:40]} a2 {[%emt 0:00:41]} 49. Bc6 {[%emt 0:00:08]} Rxb7 {[%emt 0:00:12]} 50. Bxb7 {[%emt 0:00:02]} Rxd7 {[%emt 0:00:12]} 51. Bf3 {[%emt 0:01:03] [#]} Rd1+ $1 {[%emt 0:00:11][%mdl 512]} 0-1

[Event "Reykjavik Open 2024"]
[Site "Reykjavik"]
[Date "2024.03.15"]
[Round "1.10"]
[White "Maze, Sebastien"]
[Black "Gikas, Andreas Basilius"]
[Result "1-0"]
[ECO "B04"]
[WhiteElo "2551"]
[BlackElo "2104"]
[Annotator "TA"]
[PlyCount "71"]
[EventDate "2024.03.12"]
[EventCountry "ISL"]
[SourceTitle "playchess.com"]
[Source "ChessBase"]
[SourceQuality "1"]
[TimeControl "40/5400+30:1800+30"]

{[%evp 26,71,0,3,6,0,34,11,84,74,114,122,111,120,128,133,181,92,106,98,98,53,116,106,113,107,200,192,200,202,480,426,428,411,936,431,29961,6937,6893,6370,29990,29991,29991,29992,29996,29997,29997,387]} 1. e4 {[%emt 0:00:05][%cal Be2e4,Be4e5][%mdl 32]} Nf6 {[%emt 0:00:08]} 2. e5 {[%emt 0:00:10]} Nd5 {[%emt 0:00:08]} 3. d4 {[%emt 0:00:04]} d6 {[%emt 0:00:08]} 4. c4 {[%emt 0:00:10]} Nb6 {[%emt 0:00:06]} 5. exd6 {[%emt 0:00:05]} cxd6 {[%emt 0:00:08]} 6. Nc3 {[%emt 0:00:09]} g6 {[%emt 0:00:26]} 7. h3 {[%emt 0:00:04]} Bg7 {[%emt 0:00:38]} 8. Nf3 {[%emt 0:00:03]} O-O {[%emt 0:00:19]} 9. Be2 {[%emt 0:00:02]} Bf5 {[%emt 0:00:40]} 10. O-O {[%emt 0:00:10]} Nc6 {[%emt 0:00:23]} 11. Bg5 {[%emt 0:00:30]} h6 {[%emt 0:01:52]} 12. Be3 {[%emt 0:00:03]} d5 {[%emt 0:01:56]} 13. c5 {[%emt 0:00:05]} Nc4 {[%emt 0:00:48]} 14. Bc1 {[%emt 0:00:01]} e5 {[%emt 0:13:47]} 15. dxe5 {[%emt 0:04:06]} N6xe5 {[%emt 0:11:52]} 16. Nd4 {[%emt 0:17:48] [#] aiming for Nxf5.} Bc8 {[%emt 0:07:27]} (16... Be4 $11) 17. b3 $16 {[%emt 0:06:24][%cal Bb2b3,Bb3c4][%mdl 32]} Nc6 {[%emt 0:07:40]} 18. Nxc6 {[%emt 0:01:18]} (18. bxc4 Nxd4 (18... Bxd4 19. Bd2 $11) 19. Be3 Nxe2+ 20. Nxe2 dxc4 $17) 18... bxc6 {[%emt 0:00:14]} 19. bxc4 {[%emt 0:00:12]} Bxc3 {[%emt 0:00:24]} 20. Bxh6 $1 {[%emt 0:00:08]} Be6 {[%emt 0:14:13]} (20... Re8 $16) 21. Rc1 {[%emt 0:18:46]} ({White should try} 21. Bxf8 $18 Qxf8 22. Rc1) 21... Bg7 {[%emt 0:01:18]} 22. Bxg7 {[%emt 0:01:44]} Kxg7 {[%emt 0:01:32]} 23. Qa4 {[%emt 0:00:50]} dxc4 {[%emt 0:10:43]} (23... d4 $14) 24. Bxc4 {[%emt 0:00:12]} Bxc4 {[%emt 0:04:21]} 25. Rxc4 {[%emt 0:00:52]} Qc7 {[%emt 0:00:10]} (25... Qf6 $16 {might work better.}) 26. Rd1 $18 {[%emt 0:00:51]} Rab8 {[%emt 0:07:29]} 27. Rd6 {[%emt 0:01:53][%cal Oc4g4] Strongly threatening Rg4!} Rb5 $2 {[%emt 0:00:26]} (27... Rfd8 28. Rcd4 (28. Qxc6 Qxc6 29. Rxc6 Rd1+ 30. Kh2 Rd2 $18) 28... Rxd6 29. cxd6 Qd7) 28. Rh4 {[%emt 0:01:07]} f6 {[%emt 0:06:43]} 29. Qd4 {[%emt 0:00:32]} Rf7 {[%emt 0:00:41] Prevents Rd7.} (29... Rb1+ $142 30. Kh2 Rb7) 30. Re4 {[%emt 0:02:52]} (30. g4 $142 Rb8 31. g5) 30... Qb8 {[%emt 0:04:12] [#]} (30... a5 $18 31. a3 Qa7 32. Rxc6 Rb1+ 33. Kh2 Qb7) 31. Re7 $3 {[%emt 0:02:50][%mdl 512]} Rb1+ {[%emt 0:01:32]} 32. Kh2 {[%emt 0:00:03]} Qb2 {[%emt 0:01:02]} 33. Rxf7+ {[%emt 0:01:47] White mates.} Kxf7 {[%emt 0:00:02][%cal Bg7f7,Bf7g8,Bg8h8][%mdl 32]} 34. Rd7+ {[%emt 0:00:29]} (34. Rxf6+ Kg7 35. Rf4+ (35. Rxc6+ {is a self mate.} Qxd4 36. Kg3 Rb2 37. f3 Qe5+ 38. f4 Qe3+ 39. Kh4 Rxg2 40. Rc7+ Kh6) 35... Qxd4 36. Rxd4 Rc1 37. Rd7+ Kh6 $18) 34... Kg8 {[%emt 0:01:04]} 35. Qc4+ {[%emt 0:00:11]} Kh8 {[%emt 0:00:22]} 36. Qh4+ {[%emt 0:00:02] Weighted Error Value: White=0.32/Black=0.96.  Mistake:       	White=2     	Black=7      Inaccurate:     	White=1     	Black=2      OK:         	White=8     	Black=1      Best:        	White=2     	Black=1      Strong:       	White=1     	---} 1-0

[Event "Reykjavik Open 2024"]
[Site "Reykjavik"]
[Date "2024.03.15"]
[Round "1.11"]
[White "Rittmann, Dirk"]
[Black "Adhiban, B.."]
[Result "0-1"]
[ECO "B66"]
[WhiteElo "2103"]
[BlackElo "2541"]
[Annotator "TA"]
[PlyCount "60"]
[EventDate "2024.03.12"]
[EventCountry "ISL"]
[SourceTitle "playchess.com"]
[Source "ChessBase"]
[SourceQuality "1"]
[TimeControl "40/5400+30:1800+30"]

{[%evp 17,60,0,0,-78,-77,-73,-78,-73,-68,-87,-85,-88,-74,-70,-68,-68,-65,-67,-66,-104,-104,-96,-89,-122,-104,-120,-119,-118,-114,-191,-190,-178,-179,-228,-215,-222,-222,-222,-222,-222,-222,-250,-250,-339,-332]} 1. e4 {[%emt 0:00:05]} c5 {[%emt 0:00:07]} 2. Nf3 {[%emt 0:00:12]} d6 {[%emt 0:00:05]} 3. d4 {[%emt 0:00:17]} cxd4 {[%emt 0:00:05]} 4. Nxd4 {[%emt 0:00:10]} Nf6 {[%emt 0:00:05]} 5. Nc3 {[%emt 0:00:17]} Nc6 {[%emt 0:00:05]} 6. Bg5 {[%emt 0:01:27]} e6 {[%emt 0:00:20]} 7. Qd2 {[%emt 0:00:57]} a6 {[%emt 0:00:27]} 8. f4 {[%emt 0:03:11]} h6 {[%emt 0:01:59]} 9. Bxf6 {[%emt 0:04:31]} Qxf6 {[%emt 0:00:07]} 10. O-O-O {[%emt 0:01:07]} (10. Nxc6 $11 bxc6 11. O-O-O) 10... Nxd4 $17 {[%emt 0:00:41]} 11. Qxd4 {[%emt 0:02:15] [#] e5 is the strong threat.} Qxf4+ {[%emt 0:00:03]} 12. Kb1 {[%emt 0:00:26] Black is better.} Qe5 {[%emt 0:34:02] Prevents Bb5+} 13. Qb6 {[%emt 0:32:00][%cal Oc3b5] And now Nb5! would win.} Be7 {[%emt 0:01:24]} 14. Be2 {[%emt 0:09:16]} Bd8 {[%emt 0:28:03]} 15. Qxd6 {[%emt 0:01:37]} Qxd6 {[%emt 0:00:06]} 16. Rxd6 {[%emt 0:00:09]} Bc7 {[%emt 0:00:14]} 17. Rd3 {[%emt 0:00:36]} Bd7 $36 {[%emt 0:02:06][%mdl 2048] Black has the initiative.} 18. g4 {[%emt 0:07:04]} Ke7 {[%emt 0:00:51]} 19. h3 {[%emt 0:08:47]} Bc6 {[%emt 0:10:20]} 20. Rf1 {[%emt 0:01:41]} Be5 {[%emt 0:01:09]} 21. Bf3 {[%emt 0:02:20]} Rhd8 {[%emt 0:00:23]} 22. Rfd1 {[%emt 0:16:01]} g5 {[%emt 0:00:25]} 23. Rxd8 {[%emt 0:00:54]} (23. Ne2 $17) 23... Rxd8 $19 {[%emt 0:00:04]} 24. Rxd8 {[%emt 0:00:06]} Kxd8 $17 {[%emt 0:00:01][%mdl 4096] Endgame. KBB-KBN} 25. Ne2 {[%emt 0:00:08] [#]} (25. Nd1 {might work better.}) 25... f5 $1 $19 {[%emt 0:00:29][%mdl 512]} 26. c3 {[%emt 0:02:26]} (26. c4 fxe4) 26... fxe4 {[%emt 0:06:41]} ({Weaker is} 26... Bxe4+ 27. Bxe4 fxe4 28. Kc2 $17) 27. Bg2 {[%emt 0:00:07]} Kc7 {[%emt 0:02:33]} 28. Kc2 {[%emt 0:00:33]} Kd6 {[%emt 0:00:30]} 29. Nc1 {[%emt 0:04:18]} Bf4 {[%emt 0:00:54] Strongly threatening ...Bxc1.} 30. Nb3 {[%emt 0:00:08]} e3 {[%emt 0:02:41] Weighted Error Value: White=0.26 (precise) /Black=0.02 (flawless) .  Mistake:       	White=2     	---        Inaccurate:     	White=3     	---        OK:         	White=4     	Black=12     Best:        	White=1     	Black=2} 0-1

[Event "Reykjavik Open 2024"]
[Site "Reykjavik"]
[Date "2024.03.15"]
[Round "1.12"]
[White "Fernandez, Daniel Howard"]
[Black "Maack, Kjartan"]
[Result "1-0"]
[ECO "D02"]
[WhiteElo "2532"]
[BlackElo "2102"]
[Annotator "ChessBase"]
[PlyCount "75"]
[EventDate "2024.03.12"]
[EventCountry "ISL"]
[SourceTitle "playchess.com"]
[Source "ChessBase"]
[SourceQuality "1"]
[TimeControl "40/5400+30:1800+30"]

1. d4 {[%emt 0:01:49]} d5 {[%emt 0:00:18]} 2. g3 {[%emt 0:02:55]} Bf5 {[%emt 0:02:43]} 3. Nf3 {[%emt 0:07:51]} e6 {[%emt 0:00:44]} 4. c4 {[%emt 0:04:10]} Nf6 {[%emt 0:02:03]} 5. Nc3 {[%emt 0:02:00]} Bb4 {[%emt 0:28:46]} 6. Qa4+ {[%emt 0:16:03]} Nc6 {[%emt 0:00:09]} 7. Ne5 {[%emt 0:00:08]} O-O {[%emt 0:00:50]} 8. Nxc6 {[%emt 0:00:19]} Bxc3+ {[%emt 0:00:05]} 9. bxc3 {[%emt 0:00:09]} bxc6 {[%emt 0:00:04]} 10. Bg2 {[%emt 0:03:54]} Qd7 {[%emt 0:04:29]} 11. O-O {[%emt 0:05:30]} h6 {[%emt 0:03:07]} 12. Re1 {[%emt 0:01:54]} Bg6 {[%emt 0:06:41]} 13. Bf4 {[%emt 0:04:39]} Rfb8 {[%emt 0:04:36]} 14. cxd5 {[%emt 0:00:10]} exd5 {[%emt 0:14:01]} 15. c4 {[%emt 0:00:48]} Rb2 {[%emt 0:09:14]} 16. Rac1 {[%emt 0:03:08]} Be4 {[%emt 0:03:57]} 17. f3 {[%emt 0:01:57]} Bf5 {[%emt 0:00:43]} 18. cxd5 {[%emt 0:00:04]} cxd5 {[%emt 0:02:09]} 19. Qxd7 {[%emt 0:03:53]} Bxd7 {[%emt 0:00:08]} 20. Rxc7 {[%emt 0:01:54]} Rxa2 {[%emt 0:00:17]} 21. Be5 {[%emt 0:00:04]} Be6 {[%emt 0:01:34]} 22. Bxf6 {[%emt 0:00:56]} gxf6 {[%emt 0:00:02]} 23. f4 {[%emt 0:00:13]} Rd8 {[%emt 0:04:30]} 24. Kf2 {[%emt 0:00:15]} Bf5 {[%emt 0:01:26]} 25. Rec1 {[%emt 0:03:31]} Bg4 {[%emt 0:06:31]} 26. Re7 {[%emt 0:03:58]} a5 {[%emt 0:02:48]} 27. Rcc7 {[%emt 0:00:33]} Be6 {[%emt 0:01:16]} 28. Bf3 {[%emt 0:00:02]} a4 {[%emt 0:00:46]} 29. Bh5 {[%emt 0:00:09]} Rf8 {[%emt 0:00:31]} 30. g4 {[%emt 0:02:25]} f5 {[%emt 0:00:27]} 31. gxf5 {[%emt 0:01:13]} Bxf5 {[%emt 0:00:04]} 32. Rxf7 {[%emt 0:00:13]} Be4 {[%emt 0:01:00]} 33. f5 {[%emt 0:01:07]} Rxf7 {[%emt 0:00:17]} 34. Bxf7+ {[%emt 0:00:05]} Kh8 {[%emt 0:00:41]} 35. f6 {[%emt 0:00:20]} Bf5 {[%emt 0:00:32]} 36. Bxd5 {[%emt 0:00:14]} Rb2 {[%emt 0:00:24]} 37. f7 {[%emt 0:03:15]} Kg7 {[%emt 0:00:30]} 38. f8=B+ {[%emt 0:00:17]} 1-0